Cogmind - Beta 16.1 @@@ ROGUE MODE // 2026.04.05 @ 04:08:30 Player: KURIIRI Result: Destroyed by Y8-VIR(R) with Subdweller Laser Performance ------------- Evolutions (0) 0 Regions Visited (2) 400 Robots Destroyed (26) 130 Value Destroyed (509) 509 Prototype IDs (0) 0 Alien Tech Used (0) 0 Bonus (0) 0 TOTAL SCORE: 1039 Bonus ------- None Cogmind --------- Core Integrity 0/250 Matter 269/300 Energy 100/100 System Corruption 3% Temperature Cool (6) Movement Rolling (135) Ox3 Location -10/Subcaves Parts ------- > --- POWER (1) -------- (None) > --- PROPULSION (2) --- Armored Wheel Armored Wheel > --- UTILITY (2) ------ Huge Storage Unit > --- WEAPON (2) ------- Light Assault Rifle Light Assault Rifle > --- INVENTORY (25) --- Ion Engine Light Nuclear Core Light Treads Wheel Armored Wheel Armored Wheel Large Storage Unit High-capacity Matter Pod (200) Subdweller Optics Hacking Suite Multitool Peak State ------------ > --- POWER ------------ Light Ion Engine > --- PROPULSION ------- Light Treads Armored Wheel > --- UTILITY ---------- Huge Storage Unit Seismic Detector > --- WEAPON ----------- Assault Rifle Subdweller Machine Gun > --- INVENTORY -------- Ion Engine Light Nuclear Core Light Treads Wheel Armored Wheel Armored Wheel Armored Wheel Large Storage Unit High-capacity Matter Pod Subdweller Optics Hacking Suite Light Assault Rifle Light Assault Rifle Grenade Launcher Multitool [Rating: 11] Favorites ----------- Power Ion Engine Engine Ion Engine Propulsion Light Treads Treads Light Treads Leg Aluminum Leg Wheel Wheel Utility Seismic Detector Device Seismic Detector Storage Huge Storage Unit Weapon Assault Rifle Energy Gun Small Laser Ballistic Gun Assault Rifle Launcher Grenade Launcher Build | -11 -10 -10 ------- Run | Yrd Mat Sub Slots Evolved . | . . . Power . | . . . Propulsion . | . . . Utility . | . . . Weapon . | . . . Parts Attached 15 | 3 5 7 Power 1 | . . 1 Engine 1 | . . 1 Core . | . . . Reactor . | . . . Propulsion 6 | 2 2 2 Treads 2 | 2 . . Leg . | . . . Wheel 4 | . 2 2 Hover . | . . . Flight . | . . . Utility 3 | 1 2 . Device 1 | 1 . . Storage 2 | . 2 . Processor . | . . . Hackware . | . . . Protection . | . . . Artifact . | . . . Weapon 5 | . 1 4 Energy Gun 1 | . . 1 Energy Cannon . | . . . Ballistic Gun 3 | . . 3 Ballistic Cannon . | . . . Launcher 1 | . 1 . Special Weapon . | . . . Impact Weapon . | . . . Slashing Weapon . | . . . Piercing Weapon . | . . . Special Melee Weapon . | . . . Unidentified Prototypes . | . . . Parts Lost 7 | . . 7 Power 2 | . . 2 Propulsion 1 | . . 1 Utility 1 | . . 1 Weapon 3 | . . 3 Highest Loss Streak 3 | . . 3 To Critical Strikes . | . . . Average Backups 10 | 6 9 13 Power 1 | 1 1 2 Propulsion 4 | 4 4 4 Utility 1 | . 1 3 Weapon 1 | 1 1 2 Tool/Special . | . . . Unused Backups 8 | . 1 7 Power 1 | . . 1 Propulsion 2 | . . 2 Utility 4 | . 1 3 Weapon . | . . . Tool/Special 1 | . . 1 Average Slot Usage (%) 98 | . 100 92 Engine 13 | . 14 12 Treads 18 | . 20 8 Wheel 9 | . 7 14 Device 13 | . 14 13 Storage 14 | . 14 14 Energy Gun 8 | . 9 4 Ballistic Gun 15 | . 14 22 Launcher 4 | . 4 1 Peak Build Rating 11 | 7 9 11 Average Rating 8 | 6 8 9 On Entrance 7 | 6 7 9 Avg Prop Armor Cover (%) 11 | . 11 11 Naked Turns . | . . . Heaviest Build 91 | 14 91 91 Greatest Support 40 | 40 40 12 Greatest Overweight (x) 9 | . 9 9 Average Overweight (x) 4 | . 3 7 Largest Inventory Capacity 25 | 8 25 25 Average Capacity 20 | 8 19 25 Most Carried 15 | 6 14 15 Average Carried 10 | 5 10 13 Final Capacity 25 | 8 25 25 Final Carried 13 | 4 13 11 Class Distribution -------------------- 100% | Mutant Dominant Class ---------------- Mutant | -10/Materials Mutant | -10/Subcaves Resources | -11 -10 -10 ----------- Run | Yrd Mat Sub Matter Collected 895 | 228 557 110 Remotely . | . . . Salvage Created 794 | 67 563 164 Parts 50 | 5 39 6 Haulers Intercepted 1 | . 1 . Recyclers Shooed . | . . . Parts Field Recycled . | . . . Retrieved Matter . | . . . Parts Self-Destructed . | . . . Prevented . | . . . Parts Restored . | . . . Kills | -11 -10 -10 ------- Run | Yrd Mat Sub Combat Hostiles Destroyed 16 | . 12 4 Guns 16 | . 12 4 Classes Destroyed 12 | 2 7 3 Worker 1 | . 1 . Builder 1 | . 1 . Tunneler 1 | 1 . . Hauler 1 | . 1 . Recycler 2 | 1 1 . Operator 2 | . 2 . Watcher 2 | . 2 . Swarmer 7 | . 7 . Grunt 5 | . 5 . Sentry 1 | . . 1 Artisan 1 | . . 1 Subdweller 3 | . . 3 Best Kill Streak 4 | 2 4 2 Combat Bots Only 3 | . 3 2 Max Kills in Single Turn 1 | 1 1 1 Gunslinging . | . . . Exploded . | . . . Melee . | . . . Uniques/NPCs Destroyed . | . . . Combat | -11 -10 -10 -------- Run | Yrd Mat Sub Hostile Shots Fired 106 | . 61 45 Missed 33 | . 25 8 Hits 73 | . 36 37 Projectile 73 | . 36 37 Critical Strikes 3 | . 1 2 Damage Taken 1247 | . 408 839 Core 251 | . 82 169 Absorbed by Shields . | . . . Core Remaining (%) 100 | 100 . . Volleys Fired 104 | 6 75 23 Largest 2 | 2 2 2 Hottest 60 | 60 60 60 Shots Fired 184 | 12 127 45 Gun 182 | 12 126 44 Cannon . | . . . Launcher 2 | . 1 1 Special . | . . . Kinetic 117 | 6 74 37 Thermal 65 | 6 52 7 Explosive 2 | . 1 1 Electromagnetic . | . . . Robot Hit Streak 17 | 4 6 17 Robot Miss Streak 9 | 2 9 1 Penetration Max . | . . . Secondary Targets 2 | . 2 . Max Gunslinging Chain 1 | . 1 . Shots Hit Robots 108 | 8 63 37 Core Hits 48 | 3 31 14 Critical Kills . | . . . Critical Parts Destroyed . | . . . Critical Strikes . | . . . Melee Attacks . | . . . Impact . | . . . Slashing . | . . . Piercing . | . . . Sneak Attacks . | . . . Combat Hostiles . | . . . Follow-up Attacks . | . . . Damage Inflicted 1475 | 96 888 491 Guns 1296 | 96 808 392 Cannons . | . . . Explosions 143 | . 44 99 Melee . | . . . Ramming 36 | . 36 . Kinetic 921 | 52 529 340 Thermal 375 | 44 279 52 Explosive 143 | . 44 99 Electromagnetic . | . . . Impact . | . . . Slashing . | . . . Piercing . | . . . Highest Corruption 3 | . 3 3 Average Corruption 2 | . 2 3 Corruption Purged . | . . . Corruption Blocked . | . . . Effects 31 | . 23 8 Message Errors 7 | . 5 2 Matter Fused 9 | . 7 2 Heat Flow Errors 3 | . 3 . Energy Discharges 4 | . 3 1 Data Loss (minor) 3 | . 1 2 Data Loss (major) 4 | . 3 1 Alerts 1 | . 1 . Overload Shots . | . . . Overflow Damage . | . . . Projectiles . | . . . Explosions . | . . . Melee . | . . . Knockbacks . | . . . Impact . | . . . Kinetic . | . . . Secondary . | . . . Self-Inflicted Damage 47 | . 23 24 Shots 1 | . . 1 Rammed 4 | . 4 . Targets Rammed 4 | . 4 . Kicked . | . . . Crushed . | . . . Highest Temperature 294 | . 240 294 Average Temperature 69 | . 53 168 Received Heat Transfer 633 | . 132 501 Siege Activations . | . . . Martial Activations . | . . . Shielding Activations . | . . . Robots Disrupted . | . . . Combat Hostiles . | . . . Robots Corrupted . | . . . Combat Hostiles . | . . . Parts Fried . | . . . Impact Corruptions . | . . . Robots Melted . | . . . Combat Hostiles . | . . . Parts Melted . | . . . Heat Transferred 850 | 100 625 125 Parts Sabotaged . | . . . Parts Stolen . | . . . Parts Stripped . | . . . Power Chain Reactions . | . . . Alert | -11 -10 -10 ------- Run | Yrd Mat Sub Maximum Alert Level . | . . . Low Security (%) 100 | 100 100 . Level 1 . | . . . Level 2 . | . . . Level 3 . | . . . Level 4 . | . . . Level 5 . | . . . High Security . | . . . Max Security . | . . . Peak Influence 165 | 10 165 . Initial . | . . . Average 50 | 1 51 . Influence Increases 511 | 10 481 20 Destroy 0b10 Robot/C 260 | . 240 20 Destroy 0b10 Robot/NC 50 | 10 40 . Destroy Leader 46 | . 46 . Successful Hack 27 | . 27 . Destroy Structure 8 | . 8 . Partial Spotted 15 | . 15 . Lose Combat Pursuer 105 | . 105 . Influence Decreases 511 | 10 481 20 Time Decay 511 | 10 481 20 Squads Dispatched 1 | . 1 . Investigation 1 | . 1 . Extermination . | . . . Reinforcement . | . . . Assault . | . . . Garrison . | . . . Intercept . | . . . Searches Triggered . | . . . Construction Impeded . | . . . Haulers Reinforced . | . . . Active Scanning Responses . | . . . Cargo Convoy Interrupts . | . . . Stealth | -11 -10 -10 --------- Run | Yrd Mat Sub Distress Signals 3 | . 3 . Communications Jammed . | . . . Distress Signals . | . . . Times Spotted 37 | . 31 6 Peak Tracking Total 6 | . 6 2 Tactical Retreats 3 | . 3 . Traps | -11 -10 -10 ------- Run | Yrd Mat Sub Traps Triggered 3 | . 3 . Indirectly . | . . . Trap Hack Attempts . | . . . Triggered . | . . . Disarmed . | . . . Reprogrammed . | . . . Reused . | . . . Traps Extracted . | . . . Installed . | . . . Triggered . | . . . Machines | -11 -10 -10 ---------- Run | Yrd Mat Sub Machines Disabled . | . . . Max in Single Turn . | . . . Machines Repaired . | . . . Machines Dismantled . | . . . Machines Sabotaged . | . . . Overloaded Fab Kills . | . . . Hacking | -11 -10 -10 --------- Run | Yrd Mat Sub Machines Accessed 9 | . 8 1 Terminals 7 | . 7 . Fabricators . | . . . Repair Stations . | . . . Recycling Units 1 | . 1 . Scanalyzers . | . . . Garrison Access . | . . . Total Hacks 28 | . 23 5 Successful 16 | . 11 5 Failed 12 | . 12 . Catastrophic 2 | . 2 . Database Lockouts . | . . . Manual 21 | . 21 . Terminals 21 | . 21 . Fabricators . | . . . Repair Stations . | . . . Recycling Units 2 | . 2 . Scanalyzers . | . . . Garrison Access . | . . . Terminal Hacks 7 | . 2 5 Record 5 | . . 5 Robot Analysis 2 | . 2 . Fabricator Hacks . | . . . Repair Station Hacks . | . . . Recycling Unit Hacks . | . . . Scanalyzer . | . . . Garrison Access Hacks . | . . . Unauthorized Hacks 9 | . 9 . Terminals 9 | . 9 . Assimilate 1 | . 1 . Botnet 2 | . 2 . Operators 1 | . 1 . Skim 5 | . 5 . Fabricators . | . . . Repair Stations . | . . . Recycling Units . | . . . Scanalyzers . | . . . Garrison Access . | . . . Data Cores Recovered 1 | . 1 . Used . | . . . Hacking Detections 8 | . 8 . Full Trace Events 1 | . 1 . Feedback Events . | . . . Feedback Blocked . | . . . Robot Schematics Acquired . | . . . Robots Built . | . . . Authchips . | . . . Time . | . . . Total Robot Build Rating . | . . . Part Schematics Acquired . | . . . Parts Built . | . . . Authchips . | . . . Time . | . . . Total Part Build Rating . | . . . Part Studies Acquired . | . . . Parts Repaired . | . . . Time . | . . . Parts Recycled . | . . . Recycled Matter . | . . . Retrieved Matter . | . . . Retrieved Components . | . . . Parts Scanalyzed . | . . . Part Schematics Acquired . | . . . Parts Damaged . | . . . Bothacking | -11 -10 -10 ------------ Run | Yrd Mat Sub Used RIF Installer . | . . . Robots Hacked . | . . . Non-combat . | . . . Combat . | . . . Robot Hacks Applied . | . . . Relay Couplers Released . | . . . Fabnet Peak Effective % . | . . . Robots Rewired . | . . . Allies Hacked . | . . . Hacks Repelled . | . . . Allies | -11 -10 -10 -------- Run | Yrd Mat Sub Total Allies . | . . . Largest Group . | . . . Highest-Rated Group . | . . . Highest-Rated Ally . | . . . Total Orders . | . . . Ally Attacks . | . . . Total Damage . | . . . Kills . | . . . Allies Corrupted . | . . . Allies Melted . | . . . Intel | -11 -10 -10 ------- Run | Yrd Mat Sub Active Infowar (turns) 2261 | 18 1882 361 Seismic 2261 | 18 1882 361 Robot Analysis Total 2 | . 2 . Derelict Logs Recovered . | . . . Drone Launches . | . . . Drone Recoveries . | . . . Exploration | -11 -10 -10 ------------- Run | Yrd Mat Sub Turns Passed 2306 | 49 1882 375 Spaces Moved 1017 | 22 856 139 Core . | . . . Treads 354 | 3 351 . Legs 19 | 19 . . Wheels 644 | . 505 139 Hover . | . . . Flight . | . . . Fastest Speed 120 | 120 160 195 Average Speed 179 | 125 177 198 Slowest Speed 215 | 160 215 215 Overloaded Moves . | . . . Propulsion Burnouts . | . . . Robots Hopped . | . . . Potential Cave-ins . | . . . Cave-ins Triggered . | . . . Exploration Rate (%) 34 | 4 88 12 Regions Visited 2 Branch Regions 1 Pre-discovered Areas 2 | . 1 1 Known Exits Taken . | . . . Unknown Exits Taken 2 | 1 1 . Scrap Searched . | . . . Spaces Dug 6 | . 6 . Terrain Destroyed 13 | . 6 7 Melee . | . . . Projectile . | . . . AOE 13 | . 6 7 Terrain Rammed 1 | . 1 . Walls Destroyed 1 | . 1 . Machines Disabled . | . . . Actions | -11 -10 -10 --------- Run | Yrd Mat Sub Total 1300 | 32 1074 194 Wait 144 | . 123 21 Move 1015 | 21 855 139 Hop . | . . . Pick Up 11 | . 9 2 Fast Attach 3 | 1 . 2 Attach 6 | 2 . 4 Detach . | . . . Swap 7 | . 5 2 Drop 5 | 2 2 1 Fire 104 | 6 75 23 Melee . | . . . Ram 1 | . 1 . Kick . | . . . Crush 4 | . 4 . Escape Stasis . | . . . Rewire . | . . . Trap . | . . . Miscellaneous . | . . . Route ------- -11/Scrapyard -10/Materials (discovered 5 exits: [*Mat x3] / [*Min] / *Sub) -10/Subcaves History --------- Turn | Location | Event 20 | -11/Scrapyard | Discovered new exit (range 3) 50 | -11/Scrapyard | Entered Materials 119 | -10/Materials | Discovered new exit (range 13) 193 | -10/Materials | Discovered new exit (range 12) 320 | -10/Materials | Build established: Mutant 333 | -10/Materials | Discovered new exit (range 12) 727 | -10/Materials | Discovered new exit (range 7) 846 | -10/Materials | Discovered new exit (range 4) 913 | -10/Materials | Learned location of Subcaves (-10) 1038 | -10/Materials | Learned 2 Mines zone layouts 1084 | -10/Materials | Learned location of 2 exits from Mines 1172 | -10/Materials | Loaded intel: 1 repair station location 1234 | -10/Materials | Learned location of 2 exits from Materials 1932 | -10/Materials | Entered Subcaves 1933 | -10/Subcaves | Approached by a straggling Scientist 1960 | -10/Subcaves | A swath of the cavern ceiling suddenly collapsed 2059 | -10/Subcaves | Ambushed by angry Subdweller bent on revenge 2165 | -10/Subcaves | Core integrity fell below 50% 2197 | -10/Subcaves | Lost 3 parts (1n2w) 2256 | -10/Subcaves | Visited Clippyterm 2262 | -10/Subcaves | Learned location of Section 7 (-2) 2262 | -10/Subcaves | Learned Research security intel 2298 | -10/Subcaves | Core integrity fell below 20% 2307 | -10/Subcaves | Destroyed by Y8-VIR(R) with Subdweller Laser Last Messages --------------- world, would you like help? World map updated: -2/Section 7. >>Record "0b10 Defenses" It looks like you're afraid of guards, would you like help? Data stored: Research security intel. >>Record "Letterhead" It looks like you're writing a letter, sorry I don't know how to do that. >>Record "LRC-V1" It looks like you're REDACTED, I can suggest REDACTED and REDACTED. Also definitely avoid REDACTED. 02277_ System corrupted: Substantial component data lost. 10-K9X(c): "I think it's somewhere east of here" 02290_ Lgt. Ion Engine destroyed. 02293_ Seismic Detector destroyed. 02298_ Sub. Machine Gun destroyed. 02302_ UM/C7UFDA R#%LMZM3J3 Map ----- +----------------------------------------------------+ | ?????????????????????????????????????????????????? | | ?????????????????????????????????????????????????? | | ?????????????????????????????????????????????????? | | ?????????????????????????????????????????????????? | | ?????????????????????????????????????????????????? | | ?????????????????????????????????????????????????? | | ?????????????????????????????????????????????????? | | ?????????????????????????????????????????????????? | | ?????????????????????????????????????????????????? | | ?????????????????????????????????????????????????? | | ?????????????????????????????????????????????????? | | ?????????????????????????????????????????????????? | | ?????????????????????????????????????????????????? | | ??????????????????????????? ?????????????????????? | | ?????????????????????????? ?????????????????????? | | ???????????????????????? ? ?????????????????????? | | ???????????????????????? ?????????????????????? | | ??????????????????????? ????????????????????? | | ???????????????????##### ""?? #????????????????? | | ???????????????????# "# "" "" ????????????????? | | ???????????????????"" """"" "?????????????????? | | ????????????????????" " ""#??????????????????? | | ?????????????????????# "" ""#???????????????????? | | ?????????????????????# "" " "#???????????????????? | | ??????????????######## "RR ?????????????????????? | | ??????????????#"""""#?# "@#??????????????????????? | | ??????????????#""X""### #??????????????????????? | | ??????????????#" "## ##??????????????????????? | | ??????????????### #### #??????????????????????? | | ??????????????### ## ##??????????????????????? | | ?????????????## # c " ##?????????????????????? | | ???????????### " #?????????????????????? | | ?????####?## #?????????????????????? | | ?????# ## ##?????????????????????? | | ?????# #### ###??????????????????????? | | ?????# ##??####????????????????????????? | | ?#???# #???????????????????????????????? | | ?# ## #???????????????????????????????? | | ?# % #???????????????????????????????? | | # ## #???????????????????????????????? | | #?? ??# #???????????????????????????????? | | ??? ??# ###???????????????????????????????? | | ??? #### ####???????????????????????????????? | | ??? ?## ## #???????????????????????????????? | | ??? ??### #???????????????????????????????? | | ???# ????## ##??????????????????????????????? | | ???# ?????## #??????????????????????????????? | | ???# ?????## #??????????????????????????????? | | ??## ?????# ##?????????????????????????????? | | ?## ####?## #?????????????????????????????? | +----------------------------------------------------+ Best States ------------- Heat Dissipation 25 Energy Generation 10 Energy Capacity 250 Matter Stores 300 Matter Capacity 300 Sight Range 16 Terrain Scan Density 10 Evasion (%) 55 Recoil Reduction 2 Item Schematics ----------------- None Robot Schematics ------------------ None Fabricated ------------ Nothing Repaired ---------- Nothing Studied --------- None Alien Tech Used ----------------- None Achievements -------------- None Challenges ------------ None Game ------ Seed SlugDamperSpiker Manual? 0 Play Time 00:13:30 Cumulative 387.9 hours Start 2026.04.05 @ 03:04:09 End 2026.04.05 @ 04:08:30 Sessions 5 Manual Loads 0 Difficulty Rogue Special Mode None Game No. 325 Rogue 289 Adventurer 36 Explorer 0 Win Type - Total 5 Types 2/0/0/1/0/0/0/2/0/0 Lore% 73 Gallery% 66 Achievement% 55 Wizard Run 0 Options --------- Layout 1 ASCII 0 Keyboard 0 Movement Numpad Keybinds 0 Fullscreen 1 Font 48/Smallcaps Map View 50x35 Zoom Use 0% Tactical HUD 1 Map Filters NONE Filters NONE Steam 1 RUN: 345579b6-cf14-4ff9-8b4c-0ad93515b677